[Event "ETCC Open 2023"]
[Site "Budva"]
[Date "2023.11.13"]
[Round "3.70"]
[White "Mehmeti, Dritan"]
[Black "Uruci, Endrit"]
[Result "1-0"]
[ECO "D18"]
[WhiteElo "2377"]
[BlackElo "2315"]
[Annotator "ChessBase"]
[PlyCount "63"]
[EventDate "2023.11.10"]
[EventType "team-tourn"]
[EventCountry "MNE"]
[SourceTitle "playchess.com"]
[Source "ChessBase"]
[SourceQuality "1"]
[WhiteTeam "Albania"]
[BlackTeam "Kosovo"]
[WhiteTeamCountry "ALB"]
[BlackTeamCountry "KOS"]
[TimeControl "40/5400+30:1800+30"]

1. d4 {[%emt 0:01:11]} d5 {[%emt 0:00:33]} 2. Nf3 {[%emt 0:00:23]} Nf6 {[%emt 0:00:18]} 3. c4 {[%emt 0:00:47]} c6 {[%emt 0:00:29]} 4. Nc3 {[%emt 0:01:03]} dxc4 {[%emt 0:00:36]} 5. a4 {[%emt 0:01:23]} Bf5 {[%emt 0:00:08]} 6. e3 {[%emt 0:00:11]} e6 {[%emt 0:00:51]} 7. Bxc4 {[%emt 0:00:07]} a5 {[%emt 0:01:01]} 8. O-O {[%emt 0:00:13]} Be7 {[%emt 0:00:08]} 9. Re1 {[%emt 0:02:29]} O-O {[%emt 0:01:20]} 10. e4 {[%emt 0:00:31]} Bg4 {[%emt 0:00:04]} 11. Be3 {[%emt 0:00:23]} Na6 {[%emt 0:00:31]} 12. h3 {[%emt 0:00:41]} Bh5 {[%emt 0:03:59]} 13. g4 {[%emt 0:01:54]} Bg6 {[%emt 0:00:06]} 14. Ne5 {[%emt 0:00:29]} Nb4 {[%emt 0:04:55]} 15. Qe2 {[%emt 0:03:09]} Nd7 {[%emt 0:03:44]} 16. f4 {[%emt 0:03:25]} Nxe5 {[%emt 0:09:12]} 17. dxe5 {[%emt 0:00:22]} Bh4 {[%emt 0:04:50]} 18. Red1 {[%emt 0:14:51]} Qe7 {[%emt 0:04:18]} 19. f5 {[%emt 0:12:44]} exf5 {[%emt 0:01:20]} 20. exf5 {[%emt 0:00:09]} Qxe5 {[%emt 0:02:51]} 21. Bb6 {[%emt 0:11:27]} Qg3+ {[%emt 0:01:56]} 22. Qg2 {[%emt 0:03:15]} Qf4 {[%emt 0:00:14]} 23. Bb3 {[%emt 0:03:08]} Kh8 {[%emt 0:05:51]} 24. fxg6 {[%emt 0:02:10]} fxg6 {[%emt 0:00:08]} 25. Rf1 {[%emt 0:02:28]} Qe5 {[%emt 0:00:22]} 26. Rf3 {[%emt 0:06:08]} Be7 {[%emt 0:05:20]} 27. Raf1 {[%emt 0:01:49]} Rxf3 {[%emt 0:00:24]} 28. Qxf3 {[%emt 0:00:35]} Bd6 {[%emt 0:01:27]} 29. Rf2 {[%emt 0:01:22]} Qe1+ {[%emt 0:05:24]} 30. Kg2 {[%emt 0:03:48]} Re8 {[%emt 0:00:05]} 31. Bd4 {[%emt 0:07:31]} h6 {[%emt 0:14:22]} 32. Qf7 {[%emt 0:02:04]} 1-0

[Event "ETCC Open 2023"]
[Site "Budva"]
[Date "2023.11.13"]
[Round "3.71"]
[White "Asllani, Muhamet"]
[Black "Ashiku, Franc"]
[Result "0-1"]
[ECO "B45"]
[WhiteElo "2216"]
[BlackElo "2396"]
[Annotator "ChessBase"]
[PlyCount "70"]
[EventDate "2023.11.10"]
[EventType "team-tourn"]
[EventCountry "MNE"]
[SourceTitle "playchess.com"]
[Source "ChessBase"]
[SourceQuality "1"]
[WhiteTeam "Kosovo"]
[BlackTeam "Albania"]
[WhiteTeamCountry "KOS"]
[BlackTeamCountry "ALB"]
[TimeControl "40/5400+30:1800+30"]

1. e4 {[%emt 0:00:08]} c5 {[%emt 0:00:17]} 2. Nf3 {[%emt 0:00:55]} e6 {[%emt 0:00:09]} 3. d4 {[%emt 0:00:22]} cxd4 {[%emt 0:00:08]} 4. Nxd4 {[%emt 0:00:28]} Nc6 {[%emt 0:00:23]} 5. Be3 {[%emt 0:01:19]} Nf6 {[%emt 0:00:30]} 6. Nc3 {[%emt 0:02:05]} Bb4 {[%emt 0:01:14]} 7. Nxc6 {[%emt 0:00:18]} bxc6 {[%emt 0:01:35]} 8. Bd3 {[%emt 0:00:25]} d5 {[%emt 0:02:42]} 9. exd5 {[%emt 0:00:47]} Nxd5 {[%emt 0:03:26]} 10. Bd2 {[%emt 0:00:17]} Nxc3 {[%emt 0:04:14]} 11. bxc3 {[%emt 0:00:12]} Bd6 {[%emt 0:02:01]} 12. Qf3 {[%emt 0:00:19]} Qc7 {[%emt 0:00:52]} 13. h3 {[%emt 0:01:25]} O-O {[%emt 0:00:46]} 14. O-O {[%emt 0:02:33]} f5 {[%emt 0:06:51]} 15. Bc4 {[%emt 0:03:56]} Kh8 {[%emt 0:01:27]} 16. Rad1 {[%emt 0:00:36]} e5 {[%emt 0:02:26]} 17. Qh5 {[%emt 0:01:58]} Bd7 {[%emt 0:02:51]} 18. Bg5 {[%emt 0:04:16]} Be8 {[%emt 0:01:51]} 19. Qh4 {[%emt 0:00:10]} Bf7 {[%emt 0:03:26]} 20. Bb3 {[%emt 0:01:20]} Rae8 {[%emt 0:00:41]} 21. Rd2 {[%emt 0:00:17]} Bxb3 {[%emt 0:05:36]} 22. axb3 {[%emt 0:01:13]} f4 {[%emt 0:05:53]} 23. Rfd1 {[%emt 0:01:13]} Re6 {[%emt 0:00:36]} 24. Qg4 {[%emt 0:02:23]} Rg6 {[%emt 0:03:09]} 25. h4 {[%emt 0:04:59]} h6 {[%emt 0:02:16]} 26. Qh5 {[%emt 0:04:46]} Kh7 {[%emt 0:06:57]} 27. c4 {[%emt 0:02:01]} Qf7 {[%emt 0:08:16]} 28. Qf3 {[%emt 0:00:25]} Bc5 {[%emt 0:01:43]} 29. Bd8 {[%emt 0:06:44]} Qf5 {[%emt 0:09:58]} 30. Kh1 {[%emt 0:09:42]} e4 {[%emt 0:02:29]} 31. Qh3 {[%emt 0:00:04]} f3 {[%emt 0:06:09]} 32. Qxf5 {[%emt 0:00:18]} fxg2+ {[%emt 0:00:30]} 33. Kh2 {[%emt 0:01:45]} Rxf5 {[%emt 0:00:18]} 34. Rg1 {[%emt 0:00:34]} Bxf2 {[%emt 0:05:31]} 35. Rxg2 {[%emt 0:00:17]} e3 {[%emt 0:00:09]} 0-1

[Event "ETCC Open 2023"]
[Site "Budva"]
[Date "2023.11.13"]
[Round "3.72"]
[White "Veleshnja, Zino"]
[Black "Saraci, Korab"]
[Result "1-0"]
[ECO "B06"]
[WhiteElo "2269"]
[BlackElo "2200"]
[Annotator "ChessBase"]
[PlyCount "101"]
[EventDate "2023.11.10"]
[EventType "team-tourn"]
[EventCountry "MNE"]
[SourceTitle "playchess.com"]
[Source "ChessBase"]
[SourceQuality "1"]
[WhiteTeam "Albania"]
[BlackTeam "Kosovo"]
[WhiteTeamCountry "ALB"]
[BlackTeamCountry "KOS"]
[TimeControl "40/5400+30:1800+30"]

1. d4 {[%emt 0:00:04]} d6 {[%emt 0:00:26]} 2. e4 {[%emt 0:03:31]} g6 {[%emt 0:00:24]} 3. Nc3 {[%emt 0:00:08]} Bg7 {[%emt 0:00:09]} 4. Bf4 {[%emt 0:03:25]} c6 {[%emt 0:05:25]} 5. Qd2 {[%emt 0:04:07]} Nd7 {[%emt 0:05:05]} 6. Nf3 {[%emt 0:01:38]} Qa5 {[%emt 0:07:39]} 7. a3 {[%emt 0:04:00]} e5 {[%emt 0:15:34]} 8. dxe5 {[%emt 0:03:04]} dxe5 {[%emt 0:00:11]} 9. Be3 {[%emt 0:02:38]} Ngf6 {[%emt 0:01:51]} 10. Bc4 {[%emt 0:04:38]} O-O {[%emt 0:02:08]} 11. O-O {[%emt 0:02:08]} Qc7 {[%emt 0:02:02]} 12. Rad1 {[%emt 0:04:57]} Nb6 {[%emt 0:09:48]} 13. Bb3 {[%emt 0:03:23]} Bg4 {[%emt 0:01:39]} 14. Bc5 {[%emt 0:05:59]} Bxf3 {[%emt 0:12:05]} 15. Bxf8 {[%emt 0:04:44]} Bxd1 {[%emt 0:01:50]} 16. Bxg7 {[%emt 0:00:26]} Kxg7 {[%emt 0:03:24]} 17. Rxd1 {[%emt 0:00:59]} Nbd7 {[%emt 0:00:58]} 18. Bc4 {[%emt 0:02:46]} Nc5 {[%emt 0:01:39]} 19. b4 {[%emt 0:05:19]} Ncd7 {[%emt 0:05:35]} 20. Bb3 {[%emt 0:03:49]} Re8 {[%emt 0:02:03]} 21. Qe3 {[%emt 0:03:10]} b5 {[%emt 0:03:16]} 22. a4 {[%emt 0:03:40]} a6 {[%emt 0:00:52]} 23. axb5 {[%emt 0:01:09]} axb5 {[%emt 0:00:06]} 24. h3 {[%emt 0:01:54]} Re7 {[%emt 0:01:36]} 25. Rd2 {[%emt 0:06:41]} Qb7 {[%emt 0:04:24]} 26. g3 {[%emt 0:03:13]} Qa8 {[%emt 0:01:51]} 27. Qd3 {[%emt 0:04:03]} Nf8 {[%emt 0:02:26]} 28. Qd8 {[%emt 0:02:36]} Qxd8 {[%emt 0:01:08]} 29. Rxd8 {[%emt 0:00:02]} Ne6 {[%emt 0:00:08]} 30. Bxe6 {[%emt 0:01:54]} Rxe6 {[%emt 0:00:06]} 31. f3 {[%emt 0:01:17]} c5 {[%emt 0:03:48]} 32. bxc5 {[%emt 0:02:16]} Rc6 {[%emt 0:00:11]} 33. Nxb5 {[%emt 0:00:52]} Rxc5 {[%emt 0:00:05]} 34. Na3 {[%emt 0:00:27]} h5 {[%emt 0:01:03]} 35. h4 {[%emt 0:00:47]} Nh7 {[%emt 0:00:52]} 36. c4 {[%emt 0:01:23]} Ra5 {[%emt 0:00:06]} 37. Nb5 {[%emt 0:00:44]} Nf8 {[%emt 0:00:29]} 38. Nd6 {[%emt 0:03:17]} Ra1+ {[%emt 0:03:33]} 39. Kf2 {[%emt 0:01:31]} Ra2+ {[%emt 0:00:05]} 40. Ke3 {[%emt 0:02:58]} Ra3+ {[%emt 0:00:05]} 41. Kf2 {[%emt 0:33:42]} Ra2+ {[%emt 0:32:13]} 42. Ke1 {[%emt 0:00:00]} Ra1+ {[%emt 0:00:00]} 43. Kd2 {[%emt 0:00:00]} Ra2+ {[%emt 0:00:00]} 44. Kd1 {[%emt 0:00:00]} Ra1+ {[%emt 0:00:00]} 45. Kc2 {[%emt 0:00:00]} Rf1 {[%emt 0:00:00]} 46. Ne8+ {[%emt 0:00:00]} Kh7 {[%emt 0:00:00]} 47. Nc7 {[%emt 0:00:00]} Kg7 {[%emt 0:00:00]} 48. Rd3 {[%emt 0:00:00]} Rg1 {[%emt 0:00:00]} 49. c5 {[%emt 0:00:00]} Kf6 {[%emt 0:00:00]} 50. c6 {[%emt 0:00:00]} Ke7 {[%emt 0:00:00]} 51. Nd5+ {[%emt 0:00:00]} 1-0

[Event "ETCC Open 2023"]
[Site "Budva"]
[Date "2023.11.13"]
[Round "3.73"]
[White "Tomic, Aleksandar"]
[Black "Muir, Andrew J"]
[Result "1-0"]
[ECO "E14"]
[WhiteElo "2411"]
[BlackElo "2227"]
[Annotator "RC"]
[PlyCount "98"]
[EventDate "2023.11.10"]
[EventType "team-tourn"]
[EventCountry "MNE"]
[SourceTitle "playchess.com"]
[Source "ChessBase"]
[SourceQuality "1"]
[WhiteTeam "Montenegro"]
[BlackTeam "Scotland"]
[WhiteTeamCountry "MNE"]
[BlackTeamCountry "SCO"]
[TimeControl "40/5400+30:1800+30"]

1. Nf3 {[%emt 0:07:00]} d5 {[%emt 0:00:34]} 2. b3 {[%emt 0:00:22]} Nf6 {[%emt 0:02:07]} 3. Bb2 {[%emt 0:00:20]} e6 {[%emt 0:00:12]} 4. e3 {[%emt 0:00:45]} b6 {[%emt 0:02:56]} 5. c4 {[%emt 0:01:06]} Bb7 {[%emt 0:00:55]} 6. Nc3 {[%emt 0:01:27]} Be7 {[%emt 0:01:23]} 7. cxd5 {[%emt 0:03:44]} exd5 {[%emt 0:00:56]} 8. d4 {[%emt 0:07:01]} O-O {[%emt 0:02:12]} 9. Bd3 {[%emt 0:00:06]} c5 {[%emt 0:01:37]} 10. O-O {[%emt 0:00:13]} Nc6 {[%emt 0:02:40]} 11. Ne2 {[%emt 0:01:03]} Bd6 {[%emt 0:05:20]} 12. Rc1 {[%emt 0:03:10]} Qe7 {[%emt 0:01:48]} 13. Ng3 {[%emt 0:01:18]} g6 {[%emt 0:01:05]} 14. Re1 {[%emt 0:01:27]} Rad8 {[%emt 0:06:17]} 15. Ba1 {[%emt 0:15:39]} Ne4 {[%emt 0:10:04]} 16. Bb1 {[%emt 0:05:50]} Rfe8 {[%emt 0:16:06]} 17. Qe2 {[%emt 0:04:41]} Ng5 {[%emt 0:17:26]} 18. Ne5 {[%emt 0:05:37]} f6 {[%emt 0:15:10]} 19. Nxc6 {[%emt 0:15:13]} Bxc6 {[%emt 0:00:07]} 20. h4 {[%emt 0:01:18]} Ne6 {[%emt 0:05:02]} 21. Qg4 {[%emt 0:12:43]} Qg7 {[%emt 0:02:35]} 22. Qf3 {[%emt 0:02:47]} Rf8 {[%emt 0:01:26]} 23. Red1 {[%emt 0:02:36]} Bb7 {[%emt 0:00:30]} 24. Ne2 {[%emt 0:00:40]} Qe7 {[%emt 0:01:04]} 25. Nc3 {[%emt 0:01:08]} cxd4 {[%emt 0:00:42]} 26. exd4 {[%emt 0:00:59]} Bf4 {[%emt 0:01:10]} 27. Rc2 {[%emt 0:00:28]} Rfe8 {[%emt 0:00:39]} 28. Re2 {[%emt 0:00:48]} Qd6 {[%emt 0:00:24]} 29. Rde1 {[%emt 0:03:22]} Kf7 {[%emt 0:00:02]} 30. Nb5 {[%emt 0:00:51]} Qb8 {[%emt 0:00:10]} 31. h5 {[%emt 0:00:59]} Ng5 {[%emt 0:01:53]} 32. Qd3 {[%emt 0:00:29]} Ne4 {[%emt 0:00:26]} 33. Qh3 {[%emt 0:00:45]} Kg7 {[%emt 0:00:40]} 34. g3 {[%emt 0:00:56]} a6 {[%emt 0:00:41]} 35. gxf4 {[%emt 0:00:27]} axb5 {[%emt 0:00:04]} 36. f3 {[%emt 0:00:28]} Nd6 {[%emt 0:00:50]} 37. Re7+ {[%emt 0:00:41]} Rxe7 {[%emt 0:00:48]} 38. Rxe7+ {[%emt 0:00:02]} Nf7 {[%emt 0:00:07]} 39. h6+ {[%emt 0:00:40]} Kh8 {[%emt 0:01:11]} 40. Rxf7 {[%emt 0:00:36]} Qxf4 {[%emt 0:00:07]} 41. Qe6 {[%emt 0:09:35]} Qg3+ {[%emt 0:06:15]} 42. Kf1 {[%emt 0:01:01]} Qxf3+ {[%emt 0:00:18]} 43. Ke1 {[%emt 0:00:29]} Qh1+ {[%emt 0:02:56]} 44. Ke2 {[%emt 0:01:37]} Qg2+ {[%emt 0:07:38]} 45. Kd3 {[%emt 0:01:03]} Qf3+ {[%emt 0:08:06]} 46. Kc2 {[%emt 0:01:25]} Qf2+ {[%emt 0:02:41]} 47. Kc3 {[%emt 0:00:20]} b4+ {[%emt 0:00:48]} 48. Kxb4 {[%emt 0:00:13]} Qd2+ {[%emt 0:00:10]} 49. Bc3 {[%emt 0:00:13]} Bc8 {[%emt 0:06:42]} 1-0

[Event "ETCC Open 2023"]
[Site "Budva"]
[Date "2023.11.13"]
[Round "3.74"]
[White "Morrison, Graham"]
[Black "Sukovic, Andrej"]
[Result "1/2-1/2"]
[ECO "E11"]
[WhiteElo "2221"]
[BlackElo "2382"]
[Annotator "ChessBase"]
[PlyCount "60"]
[EventDate "2023.11.10"]
[EventType "team-tourn"]
[EventCountry "MNE"]
[SourceTitle "playchess.com"]
[Source "ChessBase"]
[SourceQuality "1"]
[WhiteTeam "Scotland"]
[BlackTeam "Montenegro"]
[WhiteTeamCountry "SCO"]
[BlackTeamCountry "MNE"]
[TimeControl "40/5400+30:1800+30"]

1. d4 {[%emt 0:00:05]} Nf6 {[%emt 0:06:37]} 2. c4 {[%emt 0:00:09]} e6 {[%emt 0:00:29]} 3. Nf3 {[%emt 0:00:10]} Bb4+ {[%emt 0:00:04]} 4. Bd2 {[%emt 0:00:12]} a5 {[%emt 0:00:05]} 5. g3 {[%emt 0:00:20]} d6 {[%emt 0:00:05]} 6. Bg2 {[%emt 0:00:14]} Nbd7 {[%emt 0:00:05]} 7. O-O {[%emt 0:00:40]} e5 {[%emt 0:00:02]} 8. Qc2 {[%emt 0:02:29]} O-O {[%emt 0:00:53]} 9. e4 {[%emt 0:01:55]} exd4 {[%emt 0:12:25]} 10. Nxd4 {[%emt 0:00:11]} Re8 {[%emt 0:00:35]} 11. h3 {[%emt 0:14:12]} c6 {[%emt 0:07:45]} 12. Bxb4 {[%emt 0:06:49]} axb4 {[%emt 0:00:07]} 13. Nd2 {[%emt 0:00:06]} Nc5 {[%emt 0:05:38]} 14. Rfe1 {[%emt 0:02:38]} Qb6 {[%emt 0:05:44]} 15. N2b3 {[%emt 0:10:30]} Nxb3 {[%emt 0:19:26]} 16. Nxb3 {[%emt 0:00:09]} Be6 {[%emt 0:00:28]} 17. Kh2 {[%emt 0:04:44]} Nd7 {[%emt 0:01:07]} 18. f4 {[%emt 0:04:51]} Nc5 {[%emt 0:00:33]} 19. f5 {[%emt 0:03:48]} Bd7 {[%emt 0:02:34]} 20. Qd2 {[%emt 0:04:01]} Nxb3 {[%emt 0:15:41]} 21. axb3 {[%emt 0:03:26]} Rxa1 {[%emt 0:00:32]} 22. Rxa1 {[%emt 0:00:07]} c5 {[%emt 0:04:36]} 23. Rd1 {[%emt 0:04:34]} f6 {[%emt 0:01:39]} 24. Qxd6 {[%emt 0:14:27]} Qxd6 {[%emt 0:00:09]} 25. Rxd6 {[%emt 0:00:05]} Bc6 {[%emt 0:00:06]} 26. Rd2 {[%emt 0:06:48]} Kf8 {[%emt 0:05:10]} 27. g4 {[%emt 0:09:32]} Bxe4 {[%emt 0:05:33]} 28. Re2 {[%emt 0:00:16]} Bd3 {[%emt 0:01:37]} 29. Rxe8+ {[%emt 0:00:22]} Kxe8 {[%emt 0:00:10]} 30. Bxb7 {[%emt 0:00:13]} Kd7 {[%emt 0:00:11]} 1/2-1/2

[Event "ETCC Open 2023"]
[Site "Budva"]
[Date "2023.11.13"]
[Round "3.75"]
[White "Pecurica, Milos"]
[Black "Mitchell, Martin"]
[Result "1-0"]
[ECO "A70"]
[WhiteElo "2342"]
[BlackElo "2186"]
[Annotator "ChessBase"]
[PlyCount "87"]
[EventDate "2023.11.10"]
[EventType "team-tourn"]
[EventCountry "MNE"]
[SourceTitle "playchess.com"]
[Source "ChessBase"]
[SourceQuality "1"]
[WhiteTeam "Montenegro"]
[BlackTeam "Scotland"]
[WhiteTeamCountry "MNE"]
[BlackTeamCountry "SCO"]
[TimeControl "40/5400+30:1800+30"]

1. d4 {[%emt 0:00:04]} Nf6 {[%emt 0:00:19]} 2. c4 {[%emt 0:00:13]} e6 {[%emt 0:00:28]} 3. Nf3 {[%emt 0:00:33]} c5 {[%emt 0:00:17]} 4. d5 {[%emt 0:01:07]} exd5 {[%emt 0:00:17]} 5. cxd5 {[%emt 0:00:06]} d6 {[%emt 0:00:24]} 6. Nc3 {[%emt 0:00:13]} g6 {[%emt 0:01:35]} 7. e4 {[%emt 0:01:09]} Bg7 {[%emt 0:01:31]} 8. h3 {[%emt 0:01:20]} O-O {[%emt 0:00:49]} 9. Bd3 {[%emt 0:00:39]} b5 {[%emt 0:01:08]} 10. Bxb5 {[%emt 0:00:19]} Nxe4 {[%emt 0:00:47]} 11. Nxe4 {[%emt 0:00:06]} Qa5+ {[%emt 0:00:09]} 12. Nfd2 {[%emt 0:00:06]} Qxb5 {[%emt 0:00:06]} 13. Nxd6 {[%emt 0:00:08]} Qa6 {[%emt 0:00:35]} 14. N2c4 {[%emt 0:00:36]} Nd7 {[%emt 0:01:01]} 15. O-O {[%emt 0:00:44]} Ne5 {[%emt 0:03:49]} 16. Nxc8 {[%emt 0:00:50]} Raxc8 {[%emt 0:01:52]} 17. Nxe5 {[%emt 0:00:11]} Bxe5 {[%emt 0:00:08]} 18. Qf3 {[%emt 0:01:10]} Rfe8 {[%emt 0:05:15]} 19. Rd1 {[%emt 0:10:29]} c4 {[%emt 0:12:23]} 20. Rb1 {[%emt 0:14:39]} Qxa2 {[%emt 0:04:13]} 21. Bg5 {[%emt 0:03:20]} Bxb2 {[%emt 0:08:29]} 22. Rxb2 {[%emt 0:05:24]} Qxb2 {[%emt 0:00:07]} 23. d6 {[%emt 0:00:06]} Qe2 {[%emt 0:28:02]} 24. Qxe2 {[%emt 0:03:00]} Rxe2 {[%emt 0:00:05]} 25. d7 {[%emt 0:01:05]} Ree8 {[%emt 0:03:09]} 26. dxe8=Q+ {[%emt 0:02:45]} Rxe8 {[%emt 0:00:03]} 27. Ra1 {[%emt 0:00:54]} Ra8 {[%emt 0:04:25]} 28. Ra4 {[%emt 0:00:45]} c3 {[%emt 0:00:33]} 29. Rc4 {[%emt 0:00:21]} a5 {[%emt 0:00:11]} 30. Rxc3 {[%emt 0:00:26]} a4 {[%emt 0:00:14]} 31. Bc1 {[%emt 0:00:15]} f5 {[%emt 0:02:07]} 32. Ba3 {[%emt 0:00:49]} Ra7 {[%emt 0:00:11]} 33. Rc4 {[%emt 0:00:40]} Kf7 {[%emt 0:00:14]} 34. Kf1 {[%emt 0:00:25]} Ke6 {[%emt 0:01:40]} 35. Ke2 {[%emt 0:00:15]} Kd5 {[%emt 0:00:45]} 36. Kd3 {[%emt 0:00:46]} Ra5 {[%emt 0:01:43]} 37. Rd4+ {[%emt 0:00:26]} Ke5 {[%emt 0:01:05]} 38. f4+ {[%emt 0:00:42]} Ke6 {[%emt 0:01:10]} 39. Rd6+ {[%emt 0:00:48]} Kf7 {[%emt 0:00:05]} 40. Rd7+ {[%emt 0:00:06]} Ke6 {[%emt 0:00:15]} 41. Re7+ {[%emt 0:30:48]} Kf6 {[%emt 0:30:10]} 42. Rxh7 {[%emt 0:01:41]} Rd5+ {[%emt 0:00:26]} 43. Ke3 {[%emt 0:00:34]} Rb5 {[%emt 0:00:21]} 44. Rd7 {[%emt 0:00:20]} 1-0

[Event "ETCC Open 2023"]
[Site "Budva"]
[Date "2023.11.13"]
[Round "3.76"]
[White "Levy, David N L"]
[Black "Pobor, Milo"]
[Result "0-1"]
[ECO "B26"]
[WhiteElo "2221"]
[BlackElo "2195"]
[Annotator "ChessBase"]
[PlyCount "62"]
[EventDate "2023.11.10"]
[EventType "team-tourn"]
[EventCountry "MNE"]
[SourceTitle "playchess.com"]
[Source "ChessBase"]
[SourceQuality "1"]
[WhiteTeam "Scotland"]
[BlackTeam "Montenegro"]
[WhiteTeamCountry "SCO"]
[BlackTeamCountry "MNE"]
[TimeControl "40/5400+30:1800+30"]

1. e4 {[%emt 0:00:01]} c5 {[%emt 0:00:05]} 2. Nc3 {[%emt 0:00:05]} Nc6 {[%emt 0:00:10]} 3. g3 {[%emt 0:00:06]} g6 {[%emt 0:00:46]} 4. Bg2 {[%emt 0:00:07]} Bg7 {[%emt 0:00:06]} 5. d3 {[%emt 0:00:06]} d6 {[%emt 0:00:44]} 6. Nge2 {[%emt 0:00:07]} e6 {[%emt 0:01:49]} 7. O-O {[%emt 0:00:26]} Nge7 {[%emt 0:00:27]} 8. Bg5 {[%emt 0:00:52]} O-O {[%emt 0:04:35]} 9. Qd2 {[%emt 0:00:51]} Rb8 {[%emt 0:02:47]} 10. Bh6 {[%emt 0:03:01]} Bxh6 {[%emt 0:02:22]} 11. Qxh6 {[%emt 0:00:04]} Nd4 {[%emt 0:02:03]} 12. Nxd4 {[%emt 0:03:24]} cxd4 {[%emt 0:00:46]} 13. Ne2 {[%emt 0:00:15]} e5 {[%emt 0:04:02]} 14. f4 {[%emt 0:04:23]} f5 {[%emt 0:02:28]} 15. h4 {[%emt 0:25:08]} Kh8 {[%emt 0:21:12]} 16. fxe5 {[%emt 0:04:22]} dxe5 {[%emt 0:01:02]} 17. Rf2 {[%emt 0:02:44]} Ng8 {[%emt 0:03:59]} 18. Qd2 {[%emt 0:05:30]} Nf6 {[%emt 0:00:53]} 19. Bf3 {[%emt 0:01:47]} Be6 {[%emt 0:11:59]} 20. Raf1 {[%emt 0:02:22]} Qc7 {[%emt 0:05:18]} 21. c4 {[%emt 0:03:46]} Kg7 {[%emt 0:04:59]} 22. h5 {[%emt 0:08:18]} fxe4 {[%emt 0:07:04]} 23. Bxe4 {[%emt 0:02:53]} Nxe4 {[%emt 0:04:29]} 24. dxe4 {[%emt 0:00:04]} Bxc4 {[%emt 0:02:05]} 25. hxg6 {[%emt 0:11:39]} hxg6 {[%emt 0:02:28]} 26. Rc1 {[%emt 0:02:38]} Rxf2 {[%emt 0:00:32]} 27. Kxf2 {[%emt 0:00:05]} Qf7+ {[%emt 0:08:41]} 28. Kg2 {[%emt 0:00:35]} Rf8 {[%emt 0:00:38]} 29. Nxd4 {[%emt 0:00:41]} Bf1+ {[%emt 0:02:41]} 30. Kg1 {[%emt 0:00:57]} exd4 {[%emt 0:00:19]} 31. Qxd4+ {[%emt 0:00:25]} Kg8 {[%emt 0:00:19]} 0-1